[Event "Israeli Team U18-ch 2022"]
[Site "Be'er Ya'akov"]
[Date "2022.08.14"]
[Round "2.6"]
[White "Ben Ari, Yannay"]
[Black "Tashkinova, Sofiia"]
[Result "1-0"]
[ECO "A11"]
[WhiteElo "2411"]
[BlackElo "1935"]
[Annotator "TA"]
[PlyCount "57"]
[EventDate "2022.08.14"]
[EventCountry "ISR"]
[SourceTitle "playchess.com"]
[Source "ChessBase"]
[SourceQuality "1"]
[TimeControl "3000+10"]

{[%evp 9,56,8,106,112,115,104,104,75,112,106,105,91,128,127,147,156,167,147,197,192,235,214,221,200,289,263,258,242,357,239,513,473,767,762,812,818,818,813,811,811,747,732,29983,29984,29984,29985,29985,29986,29999]} 1. c4 {[%emt 0:00:02]} c6 {[%emt 0:00:05]} 2. Nf3 {[%emt 0:00:21]} d5 {[%emt 0:00:06]} 3. g3 {[%emt 0:00:38]} Nf6 {[%emt 0:00:56]} 4. Bg2 {[%emt 0:00:01]} Bg4 {[%emt 0:01:58]} 5. Ne5 {[%emt 0:00:10]} e6 {[%emt 0:08:39]} (5... Bf5 $11 {remains equal.}) 6. cxd5 {[%emt 0:03:13] Black is on the road to losing. A11: English Opening: 1...c6.} exd5 {[%emt 0:01:04]} 7. Nxg4 {[%emt 0:00:03]} Nxg4 {[%emt 0:00:28] [#]} 8. e4 $1 {[%emt 0:03:55][%cal Be2e4,Be4e5][%mdl 32] White is better.} Nf6 {[%emt 0:03:18] [#]} 9. e5 {[%emt 0:01:34]} Nfd7 {[%emt 0:01:29]} 10. O-O {[%emt 0:01:51]} Be7 {[%emt 0:01:11]} 11. d4 {[%emt 0:00:12]} Nf8 {[%emt 0:01:41] [#]} 12. f4 $146 {[%emt 0:00:46][%cal Bf2f4,Bf4f5,Bf5f6,Bf6f7][%mdl 32] White is more active.} ({Predecessor:} 12. Be3 Nbd7 13. Nc3 Ne6 14. f4 f5 15. g4 O-O 16. gxf5 Nc7 17. Qd3 Nb6 18. Rad1 {1-0 (33) Clement,P (2001)-Garon,P (1974) Loire 2005}) 12... Nbd7 {[%emt 0:00:45]} 13. Nc3 {[%emt 0:00:23]} Qb6 {[%emt 0:01:58]} (13... h5 $16 14. f5 h4) 14. f5 {[%emt 0:03:23]} h5 {[%emt 0:07:15]} 15. Na4 {[%emt 0:05:11]} Qa5 {[%emt 0:03:00]} 16. Bf4 {[%emt 0:01:12]} g6 {[%emt 0:07:21]} (16... h4 {is a better defense.} 17. Rc1 hxg3) 17. f6 $18 {[%emt 0:09:57]} Bd8 {[%emt 0:00:11]} 18. Bh3 {[%emt 0:02:51][%cal Oe5e6] And now e6! would win.} Bb6 {[%emt 0:01:49]} (18... Rh7 $142 19. Bd2 Qa6) 19. Kh1 {[%emt 0:02:51][%cal Oe5e6] Black must now prevent e6!} h4 $2 {[%emt 0:01:21]} (19... Ne6 {was necessary.} 20. Bxe6 fxe6 21. f7+ Kf8) 20. e6 {[%emt 0:00:55]} Nxe6 {[%emt 0:01:38]} (20... fxe6 $142 21. f7+ Kd8 22. Nxb6 Qxb6 23. gxh4 Rh7 24. Bg5+ Kc8) 21. Bxe6 {[%emt 0:00:02]} fxe6 {[%emt 0:00:19]} 22. f7+ {[%emt 0:00:05]} Kd8 {[%emt 0:01:56]} 23. Nxb6 {[%emt 0:00:27]} Qxb6 {[%emt 0:00:38]} 24. Qg4 {[%emt 0:00:09][%csl LRe6,LRg6,LRh4]} hxg3 {[%emt 0:01:08]} 25. Bxg3 {[%emt 0:00:33]} Rf8 {[%emt 0:02:03]} 26. Rae1 {[%emt 0:01:01] White mates.} Kc8 {[%emt 0:01:16]} 27. Rxe6 {[%emt 0:00:15]} Qd8 {[%emt 0:00:08]} 28. Qe2 {[%emt 0:00:35]} b6 {[%emt 0:00:27]} 29. Qa6# {[%emt 0:00:04] Weighted Error Value: White=0.08 (flawless) /Black=0.75} 1-0

[Event "Israeli Team U18-ch 2022"]
[Site "Be'er Ya'akov"]
[Date "2022.08.14"]
[Round "2.7"]
[White "Azoulay, Yehonatan"]
[Black "Uritsky, Yonathan"]
[Result "0-1"]
[ECO "B12"]
[WhiteElo "1805"]
[BlackElo "2130"]
[Annotator "TA"]
[PlyCount "87"]
[EventDate "2022.08.14"]
[EventCountry "ISR"]
[SourceTitle "playchess.com"]
[Source "ChessBase"]
[SourceQuality "1"]
[TimeControl "3000+10"]

{[%evp 9,87,12,13,-13,14,0,-9,0,0,-48,0,0,0,-14,-8,-6,-11,-12,-8,-12,-20,-33,-26,-37,-29,-31,-31,-37,-35,-45,0,0,-8,-60,13,-74,-63,-86,-97,-168,-150,-238,-257,-394,-376,-369,-207,-188,-202,-289,-253,-285,-223,-269,-266,-355,-312,-333,-316,-301,-295,-310,-306,-373,-346,-333,-318,-414,-430,-427,-420,-408,-220,-218,-62,-61,0,0,0,-17]} 1. e4 {[%emt 0:00:02]} c6 {[%emt 0:00:01]} 2. d4 {[%emt 0:00:07]} d5 {[%emt 0:00:01]} 3. e5 {[%emt 0:00:05]} Bf5 {[%emt 0:00:04]} 4. c4 {[%emt 0:00:08]} e6 {[%emt 0:00:06]} 5. Nc3 {[%emt 0:01:04]} Ne7 {[%emt 0:00:02][%cal Oc6c5]} 6. Nf3 {[%emt 0:02:31] B12: Caro-Kann: Advance Variation.} Nd7 {[%emt 0:00:18]} 7. Be2 {[%emt 0:03:01]} dxc4 {[%emt 0:00:50]} 8. Bxc4 {[%emt 0:00:18]} Nb6 {[%emt 0:00:25]} 9. Bb3 {[%emt 0:01:02]} (9. Be2 $11) 9... Ned5 {[%emt 0:00:13]} (9... Bg4 $1 $15 {is superior.}) 10. O-O $11 {[%emt 0:02:17]} Be7 {[%emt 0:00:30] [#]} 11. Ne2 $146 {[%emt 0:01:56][%cal Bc3e2,Be2g3,Bg3e4,Be4g5][%mdl 32]} ({Predecessor:} 11. Be3 O-O 12. Rc1 a5 13. h3 h6 14. a3 Qd7 15. Qd2 Rfd8 16. Rfd1 g5 17. g4 {1-0 (48) Battulga,N (2398)-Ariunbuuvei,B (2259) Ulaanbaatar 2020}) 11... O-O {[%emt 0:00:46]} 12. Ng3 {[%emt 0:00:52]} Bg6 {[%emt 0:00:42]} 13. Bc2 {[%emt 0:01:58]} Bxc2 {[%emt 0:02:51]} 14. Qxc2 {[%emt 0:00:04]} c5 {[%emt 0:02:59]} 15. dxc5 {[%emt 0:05:18]} Rc8 {[%emt 0:00:15]} 16. Ne4 {[%emt 0:03:16]} Nd7 {[%emt 0:02:11][%cal Bb6d7,Bd7c5,Bc5d3][%mdl 32]} 17. Neg5 {[%emt 0:08:29][%csl Gg5][%cal Rc2h7]} g6 {[%emt 0:00:01]} 18. Qe2 {[%emt 0:01:32]} Nxc5 {[%emt 0:00:55]} (18... Bxc5 19. Ne4 $11) 19. h4 {[%emt 0:01:46]} h6 {[%emt 0:03:57]} 20. Nh3 {[%emt 0:01:48]} Kg7 {[%emt 0:00:35]} 21. h5 {[%emt 0:01:54]} (21. Rd1 $11) 21... Qb6 {[%emt 0:02:48]} ({Black should try} 21... g5 $15 22. Nh2 Qb6) 22. Nh2 {[%emt 0:05:53]} (22. Qd2 $2 g5 23. Nd4 Rfd8 $17) (22. hxg6 $11 fxg6 23. Nd4) 22... Qa6 {[%emt 0:00:57]} 23. Qg4 {[%emt 0:06:21] [#]} Nd3 $1 {[%emt 0:00:40]} 24. a3 {[%emt 0:02:16]} (24. hxg6 $17 {was necessary.} fxg6 25. Nf3) 24... Nxe5 $19 {[%emt 0:00:32]} (24... Nxc1 25. Raxc1 g5 26. Qf3) 25. Qd4 {[%emt 0:00:10] [#]} (25. Qg3 $17 {might work better.} Bd6 26. hxg6) 25... Bf6 $1 {[%emt 0:00:19][%cal Oe5f3] Threatens to win with ...Nf3+!} 26. Qd2 {[%emt 0:00:09]} (26. Qe4 {keeps fighting.}) 26... g5 {[%emt 0:00:38] Active counter play!} 27. f4 {[%emt 0:00:07]} gxf4 {[%emt 0:00:44]} (27... Nd3 $142 28. fxg5 Bd4+ 29. Nf2 Be3 30. gxh6+ Kh8 31. Qxe3 Nxe3 32. Bxe3 Rc2) 28. Nxf4 {[%emt 0:00:10]} Bg5 {[%emt 0:01:10]} 29. g3 {[%emt 0:00:15]} (29. Qd4 $142 Qb6 30. Qxb6 Nxb6 31. b3) 29... Qb6+ {[%emt 0:00:41]} 30. Kh1 {[%emt 0:00:09]} Rfd8 {[%emt 0:00:29] White must now prevent ...Nxf4.} 31. Qg2 {[%emt 0:00:09]} Qc6 {[%emt 0:00:40]} 32. Nxd5 {[%emt 0:00:12]} Qxd5 {[%emt 0:00:13]} 33. Bxg5 {[%emt 0:00:08]} hxg5 {[%emt 0:00:17]} 34. Qxd5 {[%emt 0:00:11]} Rxd5 {[%emt 0:00:01]} ({Stronger than} 34... exd5 35. Rae1 f6 36. Nf3 $17) 35. Rf2 {[%emt 0:00:03]} g4 {[%emt 0:00:53]} 36. Raf1 {[%emt 0:00:18]} f5 {[%emt 0:00:07]} 37. Re2 {[%emt 0:00:08]} Rh8 {[%emt 0:00:37]} 38. Rfe1 {[%emt 0:00:11]} Nd3 {[%emt 0:01:09]} ({Wrong is} 38... Kf6 $2 39. Nf1 $19) 39. Rf1 {[%emt 0:00:02] Against f4} Rxh5 {[%emt 0:00:05]} 40. Rxe6 {[%emt 0:00:15]} Kf7 {[%emt 0:00:38]} (40... Nc5 $142 41. Re7+ Kg6) 41. Re2 {[%emt 0:00:12]} f4 $2 {[%emt 0:00:57]} (41... Kg6 $19 {Hoping for ...Rd8.} 42. Re6+ Kg5) 42. Kg1 $15 {[%emt 0:00:11]} Rdg5 {[%emt 0:02:53]} (42... Rhf5 $15 43. Rd2 Ke6 44. Re2+ Kd6) 43. Rd2 $11 {[%emt 0:00:10]} Rd5 {[%emt 0:00:40]} 44. gxf4 {[%emt 0:00:22][%mdl 32768] Weighted Error Value: White=0.31/Black=0.27 (precise) . Loss on time!?} ({Not} 44. Nxg4 $2 Rhg5 45. Nh2 Rxg3+ 46. Rg2 Rdg5 47. Rxg3 Rxg3+ 48. Kh1 Ke6 $19) 0-1

[Event "Israeli Team U18-ch 2022"]
[Site "Be'er Ya'akov"]
[Date "2022.08.14"]
[Round "2.8"]
[White "Duchan, Yoav"]
[Black "Hasson Shreger, Shalev"]
[Result "1/2-1/2"]
[ECO "B31"]
[WhiteElo "1786"]
[BlackElo "1759"]
[Annotator "NA RC"]
[PlyCount "60"]
[EventDate "2022.08.14"]
[EventCountry "ISR"]
[SourceTitle "playchess.com"]
[Source "ChessBase"]
[SourceQuality "1"]
[TimeControl "3000+10"]

1. e4 {[%emt 0:00:00]} c5 {[%emt 0:00:00]} 2. Nf3 {[%emt 0:00:07]} Nc6 {[%emt 0:00:05]} 3. Bb5 {[%emt 0:00:04]} g6 {[%emt 0:00:03]} 4. Bxc6 {[%emt 0:00:08]} bxc6 {[%emt 0:00:02]} 5. O-O {[%emt 0:00:10]} Bg7 {[%emt 0:00:16]} 6. c3 {[%emt 0:00:13]} e5 {[%emt 0:00:22]} 7. d3 {[%emt 0:00:40]} Ne7 {[%emt 0:00:21]} 8. Be3 {[%emt 0:00:32]} d6 {[%emt 0:00:02]} 9. d4 {[%emt 0:00:54]} cxd4 {[%emt 0:00:28]} 10. cxd4 {[%emt 0:00:07]} Bg4 {[%emt 0:02:58]} 11. dxe5 {[%emt 0:06:02]} Bxe5 {[%emt 0:00:19]} 12. Bd4 {[%emt 0:00:43]} Bxf3 {[%emt 0:00:07]} 13. gxf3 {[%emt 0:00:07]} Qa5 {[%emt 0:02:17]} 14. Bxe5 {[%emt 0:04:33]} Qxe5 {[%emt 0:00:25]} 15. Qd2 {[%emt 0:00:30]} Rd8 {[%emt 0:01:49]} 16. Nc3 {[%emt 0:01:44]} O-O {[%emt 0:00:35]} 17. f4 {[%emt 0:02:23]} Qh5 {[%emt 0:00:25]} 18. Qe2 {[%emt 0:00:52]} Qh4 {[%emt 0:01:19]} 19. Qf3 {[%emt 0:01:11]} f5 {[%emt 0:00:05]} 20. e5 {[%emt 0:01:35]} dxe5 21. fxe5 Rd4 {[%emt 0:02:02]} 22. Rad1 {[%emt 0:02:33]} Rf4 {[%emt 0:39:50]} 23. Qe3 {[%emt 0:28:52]} Rg4+ {[%emt 0:00:10]} 24. Kh1 {[%emt 0:00:00]} f4 {[%emt 0:00:00]} 25. Qf3 {[%emt 0:00:00]} Rf5 {[%emt 0:00:00]} 26. Ne4 {[%emt 0:00:00]} Kg7 {[%emt 0:00:00]} 27. Nf6 {[%emt 0:00:00]} Rgg5 {[%emt 0:00:00]} 28. Rd4 {[%emt 0:00:00]} Nd5 {[%emt 0:00:00]} 29. Nxd5 {[%emt 0:00:00]} cxd5 {[%emt 0:00:00]} 30. Rg1 {[%emt 0:00:00]} Rh5 {[%emt 0:00:00]} 1/2-1/2

[Event "Israeli Team U18-ch 2022"]
[Site "Be'er Ya'akov"]
[Date "2022.08.14"]
[Round "2.9"]
[White "Zemach, Nadav"]
[Black "Shapira, Gal"]
[Result "1-0"]
[ECO "E06"]
[WhiteElo "2225"]
[BlackElo "1995"]
[Annotator "TA"]
[PlyCount "57"]
[EventDate "2022.08.14"]
[EventCountry "ISR"]
[SourceTitle "playchess.com"]
[Source "ChessBase"]
[SourceQuality "1"]
[TimeControl "3000+10"]

{[%evp 14,57,20,14,64,59,87,82,97,91,85,79,98,86,106,119,122,85,212,207,210,232,224,221,300,294,297,296,293,264,290,277,848,841,821,809,773,441,423,415,397,412,29991,29991,29998,29999]} 1. d4 {[%emt 0:00:01]} d5 {[%emt 0:00:05]} 2. c4 {[%emt 0:00:42]} e6 {[%emt 0:00:09]} 3. Nf3 {[%emt 0:00:05]} Nf6 {[%emt 0:00:33]} 4. g3 {[%emt 0:00:04]} Be7 {[%emt 0:00:46]} 5. Bg2 {[%emt 0:00:05]} O-O {[%emt 0:00:06]} 6. O-O {[%emt 0:00:03]} b6 {[%emt 0:00:28]} 7. cxd5 {[%emt 0:00:34]} exd5 {[%emt 0:02:26]} 8. Nc3 {[%emt 0:00:06]} Bf5 {[%emt 0:02:15] E06: Closed Catalan: Early deviations.} ({Black should try} 8... Bb7 $11) 9. Ne5 $14 {[%emt 0:03:14][%cal Og3g4] [#]} Ne4 $146 {[%emt 0:01:53]} ({Predecessor:} 9... c6 10. Qa4 b5 11. Qb3 Qb6 12. Rd1 Nbd7 13. Nxc6 Qxc6 14. Nxd5 Nxd5 15. Bxd5 Qh6 16. Bxh6 {1-0 (16) Yanayt,E (2173)-Suvorov,L (2279) Chess.com INT 2020}) 10. Qb3 {[%emt 0:02:38]} Nxc3 {[%emt 0:02:57] White is better.} 11. Qxc3 {[%emt 0:04:09]} Bf6 {[%emt 0:05:19][%cal Oc7c5]} 12. Bf4 {[%emt 0:00:51]} Re8 {[%emt 0:06:17][%cal Oc7c5]} 13. Rfd1 {[%emt 0:02:01] White is more active.} g5 {[%emt 0:02:24]} 14. Be3 {[%emt 0:01:01]} Qd6 {[%emt 0:01:01]} 15. Rac1 {[%emt 0:02:27]} Na6 {[%emt 0:01:47] Loses the game.} (15... c6 $16 {was called for.}) 16. Qd2 $18 {[%emt 0:02:22]} Bxe5 {[%emt 0:02:59]} 17. dxe5 {[%emt 0:00:38]} Qxe5 {[%emt 0:00:36]} 18. Qxd5 {[%emt 0:00:43]} Be4 {[%emt 0:01:25]} 19. Bxe4 {[%emt 0:01:36]} Qxe4 {[%emt 0:00:18]} 20. Qxg5+ {[%emt 0:00:03]} Qg6 {[%emt 0:00:42]} 21. Qh4 {[%emt 0:01:32] And now Rd5 would win.} c5 {[%emt 0:00:44]} 22. Rd5 {[%emt 0:00:24] [#] Rg5 is the strong threat.} Kh8 $2 {[%emt 0:00:46]} (22... Re4) 23. Bd2 {[%emt 0:00:57]} Re4 {[%emt 0:02:08]} 24. Bc3+ {[%emt 0:01:37]} Kg8 {[%emt 0:00:14]} 25. Rd8+ {[%emt 0:00:11]} Re8 {[%emt 0:00:12]} 26. Rxa8 {[%emt 0:00:26]} Rxa8 {[%emt 0:00:06]} 27. Rd1 {[%emt 0:00:06] [#] White wants to mate with Rd8+.} h6 {[%emt 0:00:31]} (27... Rf8 $18 28. Qf4 Nb4) 28. Rd8+ {[%emt 0:00:06]} Rxd8 {[%emt 0:00:04]} 29. Qxd8+ {[%emt 0:00:06] Weighted Error Value: White=0.26 (precise) /Black=0.73} 1-0

[Event "Israeli Team U18-ch 2022"]
[Site "Be'er Ya'akov"]
[Date "2022.08.14"]
[Round "2.11"]
[White "Levi, Or"]
[Black "Sobel, Alon"]
[Result "1-0"]
[ECO "B81"]
[WhiteElo "1784"]
[BlackElo "1843"]
[Annotator "NA RC"]
[PlyCount "51"]
[EventDate "2022.08.14"]
[EventCountry "ISR"]
[SourceTitle "playchess.com"]
[Source "ChessBase"]
[SourceQuality "1"]
[TimeControl "3000+10"]

1. e4 {[%emt 0:00:19]} c5 {[%emt 0:00:06]} 2. Nf3 {[%emt 0:00:19]} e6 {[%emt 0:00:09]} 3. d4 {[%emt 0:00:17]} cxd4 {[%emt 0:00:06]} 4. Nxd4 {[%emt 0:00:06]} Nf6 {[%emt 0:00:04]} 5. Nc3 {[%emt 0:00:22]} d6 {[%emt 0:00:26]} 6. g4 {[%emt 0:00:20]} h6 {[%emt 0:00:07]} 7. h4 {[%emt 0:00:15]} Nc6 {[%emt 0:00:22]} 8. Rg1 {[%emt 0:00:20]} h5 {[%emt 0:00:04]} 9. gxh5 {[%emt 0:00:08]} Nxh5 {[%emt 0:01:22]} 10. Bg5 {[%emt 0:00:20]} Be7 {[%emt 0:03:34]} 11. Qd2 {[%emt 0:03:21]} Qb6 {[%emt 0:03:28]} 12. Nb3 {[%emt 0:00:15]} Ne5 {[%emt 0:05:25]} 13. Be2 {[%emt 0:01:06]} g6 {[%emt 0:00:07]} 14. O-O-O {[%emt 0:02:04]} a6 {[%emt 0:01:14]} 15. Bxe7 {[%emt 0:05:29]} Kxe7 {[%emt 0:00:09]} 16. f4 {[%emt 0:37:49]} Nd7 17. Kb1 {[%emt 0:00:00]} Nhf6 {[%emt 0:02:59]} 18. e5 {[%emt 0:00:00]} dxe5 {[%emt 0:02:31]} 19. fxe5 {[%emt 0:00:00]} Nxe5 {[%emt 0:00:09]} 20. Qg5 {[%emt 0:00:00]} Ned7 {[%emt 0:01:15]} 21. Rgf1 {[%emt 0:00:00]} Ke8 {[%emt 0:02:21]} 22. Rxf6 {[%emt 0:00:00]} Nxf6 {[%emt 0:00:58]} 23. Qxf6 {[%emt 0:00:00]} Rh7 {[%emt 0:00:54]} 24. Ne4 {[%emt 0:00:00]} Bd7 {[%emt 0:01:53]} 25. Ng5 {[%emt 0:00:00]} Qe3 {[%emt 0:01:18]} 26. Bf3 {[%emt 0:00:00]} 1-0

[Event "Israeli Team U18-ch 2022"]
[Site "Be'er Ya'akov"]
[Date "2022.08.14"]
[Round "2.12"]
[White "Gavriel, Adam"]
[Black "Amitai, Ido"]
[Result "0-1"]
[ECO "A45"]
[WhiteElo "1409"]
[BlackElo "1664"]
[Annotator "NA RC"]
[PlyCount "54"]
[EventDate "2022.08.14"]
[EventCountry "ISR"]
[SourceTitle "playchess.com"]
[Source "ChessBase"]
[SourceQuality "1"]
[TimeControl "3000+10"]

1. d4 {[%emt 0:00:02]} Nf6 {[%emt 0:00:03]} 2. Bg5 {[%emt 0:00:10]} e6 {[%emt 0:00:42]} 3. e4 {[%emt 0:00:15]} Be7 {[%emt 0:00:26]} 4. Nd2 {[%emt 0:00:28]} c5 {[%emt 0:01:12]} 5. e5 {[%emt 0:00:12]} Nd5 {[%emt 0:00:27]} 6. Bxe7 {[%emt 0:00:32]} Nxe7 {[%emt 0:01:31]} 7. Nc4 {[%emt 0:01:19]} O-O {[%emt 0:00:27]} 8. dxc5 {[%emt 0:00:22]} Nd5 {[%emt 0:03:13]} 9. g3 {[%emt 0:01:08]} Qc7 {[%emt 0:01:25]} 10. Bg2 {[%emt 0:01:38]} Qxc5 {[%emt 0:00:40]} 11. Nd6 {[%emt 0:01:35]} Nb4 {[%emt 0:02:50]} 12. Be4 {[%emt 0:00:52]} Qxe5 {[%emt 0:04:27]} 13. Nf3 {[%emt 0:00:27]} Qxb2 {[%emt 0:11:34]} 14. O-O {[%emt 0:00:56]} f5 {[%emt 0:02:50]} 15. Nxc8 {[%emt 0:03:51]} fxe4 {[%emt 0:00:12]} 16. Ne7+ {[%emt 0:00:52]} Kf7 {[%emt 0:01:09]} 17. Qd6 {[%emt 0:02:33]} exf3 {[%emt 0:01:03]} 18. Rab1 {[%emt 0:01:32]} Qf6 {[%emt 0:00:44]} 19. Rxb4 {[%emt 0:01:59]} Qxe7 {[%emt 0:01:03]} 20. Rf4+ {[%emt 0:02:10]} Ke8 {[%emt 0:00:31]} 21. Qc7 {[%emt 0:01:55]} Nc6 {[%emt 0:02:49]} 22. Qxb7 {[%emt 0:00:45]} Rb8 {[%emt 0:00:21]} 23. Qc7 {[%emt 0:00:20]} Rxf4 {[%emt 0:00:25]} 24. Qxf4 {[%emt 0:00:02]} Qf6 {[%emt 0:00:11]} 25. Qd6 {[%emt 0:00:11]} Qf5 {[%emt 0:00:37]} 26. Rd1 {[%emt 0:00:14]} Rd8 {[%emt 0:00:52]} 27. Rd3 {[%emt 0:00:33]} Ne5 {[%emt 0:00:46]} 0-1

[Event "Israeli Team U18-ch 2022"]
[Site "Be'er Ya'akov"]
[Date "2022.08.14"]
[Round "2.13"]
[White "Glatt, Oded"]
[Black "Aizenberg, Benny"]
[Result "0-1"]
[ECO "B90"]
[WhiteElo "1768"]
[BlackElo "2361"]
[Annotator "TA"]
[PlyCount "52"]
[EventDate "2022.08.14"]
[EventCountry "ISR"]
[SourceTitle "playchess.com"]
[Source "ChessBase"]
[SourceQuality "1"]
[TimeControl "3000+10"]

{[%evp 19,52,10,48,-54,-24,-87,-77,-73,-64,-91,-75,-75,-8,-10,-21,-18,-25,-147,-121,-528,-518,-879,-816,-868,-862,-845,-814,-687,-429,-1294,-1219,-1054,-920,-920,-875]} 1. e4 {[%emt 0:00:03]} c5 {[%emt 0:00:01]} 2. Nf3 {[%emt 0:00:07]} d6 {[%emt 0:00:02]} 3. d4 {[%emt 0:00:11]} cxd4 {[%emt 0:00:02]} 4. Nxd4 {[%emt 0:00:09]} Nf6 {[%emt 0:00:05]} 5. Nc3 {[%emt 0:00:13]} a6 {[%emt 0:00:03]} 6. f3 {[%emt 0:00:15]} e5 {[%emt 0:00:04]} 7. Nb3 {[%emt 0:00:07]} Be7 {[%emt 0:00:05]} 8. Be3 {[%emt 0:00:12]} Be6 {[%emt 0:00:03]} 9. Qd2 {[%emt 0:00:14]} Nbd7 {[%emt 0:00:01][%cal Bb8d7,Bd7b6,Bb6a4][%mdl 32]} 10. g4 {[%emt 0:02:07]} b5 {[%emt 0:00:13]} 11. h4 {[%emt 0:01:26] B90: Sicilian Najdorf: Unusual White 6th moves, 6 Be3 Ng4 and 6 Be3 e5.} ({White should play} 11. a4 $14) 11... Nb6 {[%emt 0:02:29]} (11... b4 $5 {[%cal Rb4c3]} 12. Nd5 Bxd5 13. exd5 Nb6 $15) 12. Qf2 {[%emt 0:03:23] [#]} (12. g5 $11 {remains equal.} Nh5 13. Na5) 12... Na4 $146 {[%emt 0:01:07]} ({Predecessor:} 12... Nc4 13. Bxc4 bxc4 14. Nd2 Rb8 15. g5 Nd7 16. Rb1 Qa5 17. Ke2 O-O 18. Rhd1 f5 19. gxf6 Nxf6 {1-0 (73) Gazik,V (2059)-Chlpik,M (2099) Slovakia 2013}) 13. Nxa4 {[%emt 0:02:02] Black is better.} bxa4 {[%emt 0:00:02]} 14. Nd2 {[%emt 0:00:29]} d5 {[%emt 0:00:19]} 15. g5 {[%emt 0:04:19] [#]} d4 {[%emt 0:01:33]} (15... Nxe4 $1 $17 16. fxe4 d4) 16. Bxd4 $11 {[%emt 0:03:19]} exd4 {[%emt 0:00:26][%cal Be5d4,Bd4d3][%mdl 32]} 17. gxf6 {[%emt 0:00:16]} Bxf6 {[%emt 0:00:04][%cal Oa4a3] White must now prevent ...a3!} 18. Nc4 {[%emt 0:05:23]} (18. Bd3 $1 $11) 18... Rc8 {[%emt 0:02:45]} 19. b3 {[%emt 0:03:31][%mdl 8192] This move loses the game for White.} (19. e5 $17 {was the crucial defense.} Be7 20. b3) 19... d3 $19 {[%emt 0:01:18] Black is clearly winning.} 20. O-O-O {[%emt 0:09:12]} (20. Bxd3 $142 Bxa1 21. Qb6) 20... axb3 {[%emt 0:00:30]} 21. axb3 {[%emt 0:00:42]} Bxc4 {[%emt 0:00:16]} 22. bxc4 {[%emt 0:00:36]} Qa5 {[%emt 0:00:06] ( -> ...d2+)} 23. Rxd3 {[%emt 0:02:01]} O-O {[%emt 0:01:35]} 24. f4 {[%emt 0:00:35]} (24. Rd5 $142 Qa1+ 25. Kd2) 24... Rxc4 {[%emt 0:00:50] Threatens to win with ...Qa1+.} 25. e5 {[%emt 0:00:50]} Qa1+ {[%emt 0:00:06]} 26. Kd2 {[%emt 0:00:15] [#]} Rxc2+ $3 {[%emt 0:00:21][%mdl 512] Weighted Error Value: White=1.27/Black=0.38} 0-1